bitfinex/quotes_ETHUSD_20241019
["timestamp","ask_amount","ask_price","bid_price","bid_amount"]
[1729297252521,0.08880103,2638.5,2638.1,0.7821]
[1729297254237,0.28331806,2638.4,2638.1,0.7821]
[1729297254418,0.87904404,2638.5,2638.1,0.7821]
[1729297254626,0.08878534,2638.3,2638.1,0.7821]
[1729297254871,0.0887775,2638.2,2638.1,0.7821]
[1729297255075,0.79024301,2638.5,2638.1,0.7821]
[1729297255381,0.37223035,2638.4,2638.1,0.7821]
[1729297255694,0.08892066,2638.4,2638.1,0.7821]
[1729297260898,0.79024301,2638.5,2638.1,0.7821]
[1729297261069,0.37224735,2638.4,2638.1,0.7821]
[1729297261272,0.08892066,2638.4,2638.1,0.7821]
[1729297263611,0.28327865,2638.3,2638.1,0.7821]
[1729297263813,0.87916367,2638.4,2638.1,0.7821]
[1729297264010,0.08890497,2638.2,2638.1,0.7821]
[1729297264516,0.79024301,2638.4,2638.1,0.7821]
[1729297264701,0.37219006,2638.3,2638.1,0.7821]
[1729297264907,0.08891281,2638.3,2638.1,0.7821]
[1729297265206,0.79024301,2638.5,2638.1,0.7821]
[1729297265381,0.08890497,2638.2,2638.1,0.7821]
[1729297265579,0.79024301,2638.5,2638.1,0.7821]
[1729297265893,0.28326096,2638.4,2638.1,0.7821]
[1729297266089,0.79024301,2638.5,2638.1,0.7821]
[1729297266090,0.08891281,2638.3,2638.1,0.7821]
[1729297266420,0.79024301,2638.5,2638.1,0.7821]
[1729297266621,0.08890497,2638.2,2638.1,0.7821]
[1729297266797,0.79024301,2638.5,2638.1,0.7821]
[1729297267117,0.28326776,2638.4,2638.1,0.7821]
[1729297267348,0.08891281,2638.3,2638.1,0.7821]
[1729297267683,0.79024301,2638.5,2638.1,0.8821]
[1729297267905,0.37217989,2638.4,2638.1,0.8821]
[1729297268102,0.87916367,2638.4,2638.1,0.8821]
[1729297268302,0.28327242,2638.3,2638.1,0.8821]
[1729297268528,0.08890497,2638.2,2638.1,0.8821]
[1729297268710,0.79024301,2638.5,2638.1,0.8821]
[1729297269016,0.37219327,2638.4,2638.1,0.8821]
[1729297269187,0.08892066,2638.4,2638.1,0.8821]
[1729297270917,0.08892066,2638.4,2638.1,0.7821]
[1729297274607,0.08892066,2638.4,2638.1,0.9321]
[1729297275216,0.08892066,2638.4,2638.2,0.06963546]
[1729297275420,0.08892066,2638.4,2638.3,0.7948]
[1729297275628,0.08892066,2638.4,2638.3,1.4948]
[1729297275809,0.79024301,2639.0,2638.5,0.55]
[1729297276020,0.79024301,2639.2,2638.8,0.7948]
[1729297276322,1.0735125,2639.1,2638.8,0.7948]
[1729297276493,1.05129071,2639.1,2638.8,0.7948]
[1729297276685,1.05129071,2639.1,2638.8,0.9448]
[1729297276888,0.28326225,2639.0,2638.8,0.9448]
[1729297277217,1.05129071,2639.1,2638.8,0.9448]
[1729297277515,1.07345305,2639.0,2638.8,0.15]
[1729297277685,0.28321004,2638.9,2638.8,0.15]
[1729297278285,1.04222954,2639.0,2638.8,0.15]
[1729297278511,0.25198653,2639.0,2638.8,0.15]
[1729297279110,1.04222954,2639.0,2638.8,0.15]
[1729297279311,1.42501126,2638.9,2638.8,0.15]
[1729297280922,2.56914079,2638.9,2638.8,0.15]
[1729297281230,0.98865476,2638.9,2638.8,0.15]
[1729297281382,0.98865476,2638.9,2638.2,0.7948]
[1729297281383,2.9719914,2638.9,2638.2,0.7948]
[1729297281585,0.79275493,2638.6,2638.2,0.7948]
[1729297281780,1.62571191,2638.5,2637.7,0.7948]
[1729297282016,0.28316825,2638.4,2637.7,0.7948]
[1729297282220,1.14435493,2638.5,2637.7,0.7948]
[1729297282417,1.07586986,2638.4,2637.7,0.7948]
[1729297282684,0.79275493,2638.4,2637.7,0.7948]
[1729297282881,0.28312557,2638.3,2637.7,0.7948]
[1729297283081,0.07889071,2638.2,2637.7,0.7948]
[1729297283326,0.79275493,2638.4,2637.7,0.7948]
[1729297283528,0.36203878,2638.3,2637.7,0.7948]
[1729297283736,0.07889856,2638.3,2637.7,0.7948]
[1729297285194,0.28314561,2638.2,2637.7,0.7948]
[1729297285437,0.28314553,2638.1,2637.7,0.7948]
[1729297285638,0.07888287,2638.1,2637.7,0.7948]
[1729297286159,0.28314624,2638.0,2637.7,0.7948]
[1729297286357,1.2232378,2638.1,2637.7,0.7948]
[1729297286636,0.07881207,2637.9,2637.7,0.7948]
[1729297286797,1.14435493,2638.1,2637.7,0.7948]
[1729297286995,0.07880423,2637.8,2637.6,0.59277417]
[1729297287311,0.07879638,2637.7,2637.6,0.59277417]
[1729297287533,1.14435493,2638.1,2637.6,0.59277417]
[1729297287839,0.3619007,2638.0,2637.6,0.59277417]
[1729297288039,0.07881992,2638.0,2637.6,0.59277417]
[1729297293639,0.79275493,2638.2,2637.7,0.8012]
[1729297293800,0.07881207,2637.9,2637.7,0.8012]
[1729297294003,0.79275493,2638.2,2637.7,0.8012]
[1729297294202,0.07880423,2637.8,2637.7,0.8012]
[1729297294444,0.2830205,2638.1,2637.7,0.8012]
[1729297294647,0.07864923,2637.8,2637.7,0.8012]
[1729297294829,1.14435493,2638.3,2637.7,0.8012]
[1729297295003,0.07864923,2637.8,2637.7,0.8012]
[1729297295199,0.79275493,2638.2,2637.7,0.8012]
[1729297295450,0.07864923,2637.8,2637.7,0.8012]
[1729297295606,0.79275493,2638.2,2637.7,0.8012]
[1729297295810,0.07864923,2637.8,2637.7,0.8012]
[1729297296005,0.79275493,2638.2,2637.7,0.8012]
[1729297296244,0.07864923,2637.8,2637.7,0.8012]
[1729297296426,0.79275493,2638.2,2637.7,0.8012]
[1729297296744,0.28302599,2638.1,2637.7,0.8012]
[1729297296913,0.07866492,2638.0,2637.7,1.1312]
[1729297297114,1.18465465,2638.2,2637.7,1.1312]
[1729297297327,0.3616951,2638.1,2637.7,1.1312]
[1729297297543,0.07867277,2638.1,2637.7,1.1312]
[1729297301660,0.28294886,2638.0,2637.7,1.1312]
[1729297301942,0.07855717,2637.9,2637.7,1.1312]
[1729297302132,1.18465465,2638.2,2637.7,1.1312]
[1729297302454,0.36151649,2638.1,2637.7,1.1312]
[1729297302625,0.07857287,2638.1,2637.7,1.1312]
[1729297305018,0.3516,2638.0,2637.7,0.33]
[1729297305424,0.07855717,2637.9,2637.7,0.33]
[1729297310359,0.24120602,2638.1,2637.7,1.1062]
[1729297310558,0.07856502,2638.0,2637.7,1.1062]
[1729297320653,1.14435493,2638.2,2637.7,1.1062]
[1729297320857,0.07592394,2637.9,2637.7,1.1062]
[1729297321249,1.14435493,2638.2,2637.7,1.1062]
[1729297321454,0.0759161,2637.8,2637.7,1.1062]
[1729297321651,0.79275493,2638.2,2637.7,0.7755]
[1729297321971,0.79275493,2638.5,2637.8,0.7755]
[1729297322162,0.3589034,2638.4,2637.8,0.7755]
[1729297322367,0.07595976,2638.4,2637.8,0.7755]
[1729297324268,0.28328762,2638.3,2637.8,0.7755]
[1729297324512,0.86871469,2638.4,2637.8,0.7755]
[1729297324699,0.07594407,2638.2,2637.8,0.7755]
[1729297325013,0.79275493,2638.5,2637.8,0.7755]
[1729297325014,0.07593622,2638.1,2637.8,0.7755]
[1729297325368,0.79275493,2638.5,2637.8,0.7755]
[1729297325572,1.15208311,2638.4,2637.8,0.7755]
[1729297325883,0.28336842,2638.3,2637.8,0.7755]
[1729297326078,0.86871469,2638.4,2637.8,0.7755]
[1729297326274,0.07594407,2638.2,2637.8,0.7755]
[1729297326475,0.07595191,2638.3,2638.0,0.7755]
[1729297326675,1.18913239,2638.7,2638.0,0.7755]
[1729297326676,0.07593622,2638.1,2638.0,0.7755]
[1729297327014,0.79275493,2638.6,2638.0,0.79961433]
[1729297327226,0.28346356,2638.5,2638.0,0.85130541]
[1729297327373,0.07617771,2638.5,2638.0,0.85130541]
[1729297327969,0.07617771,2638.5,2638.1,1.4141809]
[1729297328172,0.07617771,2638.5,2638.3,0.7999]
[1729297328670,0.79275493,2638.7,2638.3,0.7999]
[1729297328874,0.07237522,2638.4,2638.3,0.7999]
[1729297329174,1.58550986,2639.0,2638.6,0.7999]
[1729297329175,0.79275493,2639.0,2638.6,0.7999]
[1729297329379,1.18913239,2639.1,2638.8,0.7999]
[1729297329380,0.79275493,2639.1,2638.8,0.7999]
[1729297329596,0.79275493,2639.2,2638.8,0.7999]
[1729297329920,0.79275493,2639.3,2638.8,0.7999]
[1729297330156,0.28324937,2639.2,2638.8,0.7999]
[1729297330300,0.79275493,2639.3,2638.8,0.7999]
[1729297330483,1.98287472,2639.7,2638.5,0.55]
[1729297330484,0.79275493,2639.7,2639.0,0.7999]
[1729297330880,0.28304529,2639.6,2639.0,0.7999]
[1729297331080,0.79275493,2639.8,2639.0,0.7999]
[1729297331584,0.28303628,2639.7,2639.0,0.7999]
[1729297331800,0.79275493,2639.9,2639.1,0.7999]
[1729297332013,0.28281133,2639.8,2639.1,0.7999]
[1729297332214,0.79275493,2639.9,2639.1,0.7999]
[1729297332511,0.3516,2639.7,2639.1,0.7999]
[1729297333099,0.79275493,2639.9,2639.1,0.7999]
[1729297333315,0.23334873,2639.8,2639.1,0.7999]
[1729297333521,1.14435493,2640.0,2639.1,0.7999]
[1729297333891,0.28249679,2639.9,2639.1,0.7999]
[1729297334093,1.14435493,2640.0,2639.1,0.7999]
[1729297334923,0.28238056,2639.9,2639.1,0.7999]
[1729297335084,0.3516,2640.0,2639.1,0.7999]
[1729297335283,0.79275493,2640.2,2639.2,0.7951]
[1729297335513,0.79275493,2640.3,2639.2,0.7951]
[1729297335722,0.79275493,2640.3,2639.3,0.07576683]
[1729297335895,0.79275493,2640.3,2639.4,0.7951]
[1729297336417,1.14435493,2640.4,2639.4,0.7951]
[1729297336622,0.23334873,2640.3,2639.4,0.7951]
[1729297337084,1.14435493,2640.4,2639.4,0.7951]
[1729297337517,0.3516,2640.4,2639.4,0.7951]
[1729297338781,0.3516,2640.6,2639.6,0.7951]
[1729297343217,0.06618535,2640.5,2639.6,0.7951]
[1729297346134,0.06626699,2640.4,2639.6,0.7951]
[1729297346322,0.3516,2640.6,2639.6,0.7951]
[1729297346755,0.06627482,2640.5,2639.6,0.7951]
[1729297347026,0.3516,2640.6,2639.6,0.7951]
[1729297347765,0.06628515,2640.5,2639.6,0.7951]
[1729297349025,0.3516,2640.6,2639.6,0.7951]
[1729297350652,0.06628515,2640.5,2639.6,0.7951]
[1729297356393,0.3516,2640.6,2639.6,0.7951]
[1729297357160,0.06627829,2640.5,2639.6,0.7951]
[1729297358194,0.3516,2640.6,2639.6,0.7951]
[1729297358361,0.06629202,2640.5,2639.6,0.7951]
[1729297360836,0.06628419,2640.4,2639.6,0.7951]
[1729297361201,0.3516,2640.6,2639.6,0.7951]
[1729297361449,0.06627635,2640.3,2639.6,0.7951]
[1729297361614,0.06629202,2640.5,2639.6,0.7951]
[1729297361810,0.3516,2640.6,2639.6,0.7951]
[1729297362040,0.06628419,2640.4,2639.6,0.7951]
[1729297362240,0.06629202,2640.5,2639.6,0.7951]
[1729297362441,0.06627635,2640.3,2639.6,0.7951]
[1729297362751,0.3516,2640.6,2639.6,0.7951]
[1729297363142,0.06629202,2640.5,2639.6,0.7951]
[1729297365344,0.28199754,2640.4,2639.6,0.7951]
[1729297365637,0.3516,2640.6,2639.6,0.7951]
[1729297365638,0.06627635,2640.3,2639.6,0.7951]
[1729297365801,0.3516,2640.2,2639.6,0.7951]
[1729297366006,0.41786852,2640.2,2639.6,0.7951]
[1729297366233,0.06626852,2640.2,2639.6,0.7951]
[1729297366417,0.3516,2640.4,2639.6,0.7951]
[1729297366638,0.06633295,2640.1,2639.6,0.7951]
[1729297366820,0.58494873,2640.4,2639.6,0.7951]
[1729297367020,0.06630103,2640.0,2639.6,0.7951]
[1729297367328,0.58494873,2640.4,2639.6,0.7951]
[1729297367512,0.0662932,2639.9,2639.6,0.7951]
[1729297367850,0.06628536,2639.8,2639.6,0.7951]
[1729297368160,1.37770366,2640.4,2639.6,0.7951]
[1729297368448,0.60520215,2640.3,2639.6,0.7951]
[1729297368653,0.28219402,2640.2,2639.6,0.7951]
[1729297368855,0.34851072,2640.2,2639.6,0.7951]
[1729297369007,0.28219402,2640.1,2639.6,0.7951]
[1729297369211,0.06630103,2640.0,2639.6,0.7951]
[1729297369707,0.06630103,2640.0,2639.6,0.8751]
[1729297370325,0.28245913,2639.9,2639.6,0.8751]
[1729297370521,0.85905596,2640.0,2639.6,0.8751]
[1729297370745,0.06628536,2639.8,2639.6,0.8751]
[1729297370953,0.79275493,2640.0,2639.6,0.8751]
[1729297371264,0.48078709,2639.9,2639.6,0.8751]
[1729297371441,0.28259836,2639.8,2639.6,0.8751]
[1729297371819,0.06627752,2639.7,2639.6,0.8751]
[1729297372153,0.28259836,2639.7,2639.6,0.8751]
[1729297372326,0.34887588,2639.7,2639.6,0.8751]
[1729297372731,0.06627752,2639.7,2639.6,0.8751]
[1729297373042,0.28293836,2639.7,2639.6,0.8751]
[1729297373247,0.34921588,2639.7,2639.6,0.8751]
[1729297373719,1.14197081,2639.7,2639.6,0.8751]
[1729297373920,0.34921588,2639.7,2639.6,0.8751]
[1729297374338,1.14197081,2639.7,2639.6,0.8751]
[1729297374655,0.85903245,2639.7,2639.6,0.8751]
[1729297374839,0.34950918,2639.7,2639.6,0.8751]
[1729297375153,1.14265361,2639.7,2639.6,0.8751]
[1729297375453,0.34950918,2639.7,2639.6,0.8751]
[1729297375649,1.53864157,2639.7,2639.6,0.8751]
[1729297378621,1.53876742,2639.7,2639.6,0.8751]
[1729297379233,1.892969,2639.7,2639.6,0.8751]
[1729297379433,1.53876742,2639.7,2639.6,0.8751]
[1729297379967,1.89295846,2639.7,2639.6,0.8751]
[1729297380267,2.45993577,2639.7,2639.6,0.8751]
[1729297380436,2.45992954,2639.7,2639.6,0.8751]
[1729297380638,1.26984357,2639.7,2639.6,0.8751]
[1729297380869,2.85535343,2639.7,2639.6,0.08]
[1729297381231,2.21780488,2639.7,2639.6,0.08]
[1729297381557,2.85541325,2639.7,2639.6,0.08]
[1729297381755,2.21780488,2639.7,2639.4,0.7859]
[1729297381953,0.79337548,2639.5,2639.4,0.7859]
[1729297382158,1.07675102,2639.5,2639.4,0.7859]
[1729297382346,1.14071258,2639.5,2639.4,0.7859]
[1729297383040,1.53740033,2639.5,2638.8,0.7859]
[1729297383244,0.79333538,2639.2,2638.8,0.7859]
[1729297383443,1.07671092,2639.1,2638.8,0.7859]
[1729297383643,0.28337554,2639.0,2638.8,0.7859]
[1729297383839,0.06381226,2639.0,2638.8,0.7859]
[1729297385173,0.79333538,2639.1,2638.8,0.7859]
[1729297385369,0.06380442,2638.9,2638.8,0.7859]
[1729297385682,0.0636874,2638.9,2638.8,0.7859]
[1729297385878,0.79333538,2639.2,2638.8,0.7859]
[1729297386084,0.0636633,2638.9,2638.8,0.7859]
[1729297386300,0.79333538,2639.2,2638.8,0.7859]
[1729297386479,0.0636633,2638.9,2638.8,0.7859]
[1729297386648,0.79333538,2639.2,2638.8,0.7859]
[1729297386843,0.0636633,2638.9,2638.8,0.7859]
[1729297387047,0.79333538,2639.2,2638.8,0.7859]
[1729297387244,0.0636633,2638.9,2638.8,0.7859]
[1729297387448,0.79333538,2639.2,2638.8,0.7859]
[1729297387647,0.0636633,2638.9,2638.8,0.7859]
[1729297387889,0.79333538,2639.2,2638.8,0.7859]
[1729297388052,0.0636633,2638.9,2638.8,0.7859]
[1729297388252,0.79333538,2639.2,2638.8,0.7859]
[1729297388475,0.0636633,2638.9,2638.8,0.7859]
[1729297388673,0.79333538,2639.2,2638.8,0.7859]
[1729297389183,0.3466175,2639.1,2638.8,0.7859]
[1729297389347,0.06367898,2639.1,2638.8,0.7859]
[1729297390424,0.79333538,2639.3,2638.8,0.7859]
[1729297390707,0.28285424,2639.2,2638.8,0.7859]
[1729297391020,0.06368682,2639.2,2638.8,0.7859]
[1729297391307,1.15022623,2639.3,2638.8,0.7859]
[1729297391516,0.06367898,2639.1,2638.8,0.7859]
[1729297391720,1.15022623,2639.3,2638.8,0.7859]
[1729297391877,0.06367114,2639.0,2638.8,0.7859]
[1729297392077,0.79333538,2639.3,2638.8,0.7859]
[1729297392417,0.0636633,2638.9,2638.8,0.7859]
[1729297392601,0.79333538,2639.3,2638.8,0.7859]
[1729297392785,0.0636633,2638.9,2638.8,0.7859]
[1729297392992,0.79333538,2639.3,2638.8,0.7859]
[1729297393207,0.48115152,2639.2,2638.8,0.7859]
[1729297393409,0.26202668,2639.2,2638.8,0.7859]
[1729297393715,0.06368682,2639.2,2638.8,0.7859]
[1729297393885,0.79333538,2639.3,2638.8,0.7859]
[1729297394092,0.06367898,2639.1,2638.8,0.7859]
[1729297394279,0.79333538,2639.3,2638.8,0.7859]
[1729297394675,0.34643154,2639.2,2638.8,0.7859]
[1729297394877,0.06368682,2639.2,2638.8,0.7859]
[1729297395112,0.79333538,2639.3,2638.8,0.7859]
[1729297395280,0.06367898,2639.1,2638.8,0.7859]
[1729297395492,0.99167524,2639.3,2638.8,0.7859]
[1729297395695,0.06367114,2639.0,2638.8,0.7859]
[1729297395895,0.79333538,2639.3,2638.8,0.7859]
[1729297396215,0.0636633,2638.9,2638.8,0.7859]
[1729297396721,0.79333538,2639.3,2638.8,0.7859]
[1729297396874,0.06349807,2638.9,2638.8,0.7859]
[1729297397218,0.79333538,2639.3,2638.8,0.7859]
[1729297397417,1.07089269,2639.4,2638.8,0.7859]
[1729297397581,0.06352159,2639.2,2638.8,0.7859]
[1729297397780,0.28273033,2639.3,2638.8,0.7859]
[1729297397781,0.06352943,2639.3,2638.8,0.7859]
[1729297397982,0.06351375,2639.1,2638.8,0.7859]
[1729297398282,0.06347492,2639.0,2638.9,0.8084]
[1729297398480,1.07089269,2639.4,2638.9,0.8084]
[1729297398686,0.50882327,2639.3,2638.9,0.8084]
[1729297398904,1.08292941,2639.3,2638.9,0.8084]
[1729297399230,0.06349844,2639.3,2639.0,0.88417672]
[1729297399517,0.79333538,2639.7,2638.8,0.33]
[1729297399518,0.79333538,2639.7,2638.9,0.8084]
[1729297399824,0.06347683,2639.2,2638.9,0.8084]
[1729297400027,0.3516,2639.3,2638.9,0.8084]
[1729297400182,0.06346899,2639.1,2638.9,0.8084]
[1729297400520,1.14493538,2639.3,2638.9,0.8084]
[1729297400521,0.0635059,2639.0,2638.9,0.8084]
[1729297400822,1.14493538,2639.3,2638.9,0.8084]
[1729297400984,0.0635059,2639.0,2638.9,0.8084]
[1729297401188,1.14493538,2639.3,2638.9,0.8084]
[1729297401515,0.0635059,2639.0,2638.9,0.8084]
[1729297401823,1.14493538,2639.3,2638.9,0.8084]
[1729297402115,0.51625227,2639.2,2638.9,0.8084]
[1729297402416,0.29702144,2639.2,2638.9,0.8084]
[1729297402779,1.09035682,2639.2,2638.8,0.33]
[1729297402977,1.14493538,2639.1,2638.8,0.33]
[1729297403221,1.05653739,2639.0,2638.8,0.33]
[1729297403396,1.12000542,2639.0,2638.8,0.33]
[1729297403782,0.3516,2638.9,2638.8,0.33]
[1729297404032,1.82427729,2638.9,2638.8,0.33]
[1729297404315,2.63622508,2638.9,2638.8,0.33]
[1729297404523,3.12410297,2638.9,2638.8,0.33]
[1729297407996,1.53841218,2638.9,2638.8,0.33]
[1729297408203,3.12392204,2638.9,2638.8,0.33]
[1729297408503,1.18545159,2638.9,2638.8,0.33]
[1729297409399,2.37047294,2638.9,2638.8,0.33]
[1729297409605,1.18545159,2638.9,2638.8,0.33]
[1729297411249,2.37048564,2638.9,2638.8,0.33]
[1729297411454,1.13601017,2638.9,2638.8,0.33]
[1729297411656,0.3459737,2638.9,2638.8,0.33]
[1729297411862,0.34556522,2638.9,2638.8,0.33]
[1729297412519,1.13560169,2638.9,2638.8,0.33]
[1729297412874,0.34556522,2638.9,2638.8,0.33]
[1729297414357,0.06337757,2638.9,2638.8,0.33]
[1729297414734,0.06337757,2638.9,2638.8,1.115]
[1729297414929,0.79003647,2639.2,2638.8,1.115]
[1729297415163,0.06095868,2638.9,2638.8,1.115]
[1729297415461,0.79003647,2639.2,2638.8,1.115]
[1729297415755,0.28230133,2639.1,2638.8,1.115]
[1729297415970,0.06097436,2639.1,2638.8,1.115]
[1729297416136,0.28231034,2639.0,2638.8,1.115]
[1729297416337,0.06096652,2639.0,2638.8,1.115]
[1729297420452,0.85100299,2639.0,2638.8,1.115]
[1729297421342,0.06096652,2639.0,2638.8,1.115]
[1729297421661,0.06096652,2639.0,2638.8,0.785]
[1729297421968,0.06096652,2639.0,2638.9,3.0]
[1729297422166,0.34355001,2639.0,2638.8,0.785]
[1729297422460,0.06096652,2639.0,2638.8,0.785]
[1729297422827,0.06096652,2639.0,2638.8,0.8641809]
[1729297423025,1.18503405,2639.5,2638.3,0.785]
[1729297423026,0.79003647,2639.5,2638.3,0.785]
[1729297423342,1.07269943,2639.4,2638.5,0.785]
[1729297423524,0.79003647,2639.2,2638.5,0.785]
[1729297423865,0.28269242,2639.1,2638.5,0.785]
[1729297424038,0.34181284,2639.1,2638.5,0.785]
[1729297424240,0.05912042,2639.1,2638.5,0.785]
[1729297424454,0.28273563,2639.0,2638.5,0.785]
[1729297424770,0.05917707,2638.9,2638.5,0.785]
[1729297424939,0.79003647,2639.1,2638.5,0.785]
[1729297425146,0.05916923,2638.8,2638.5,0.785]
[1729297425376,0.79003647,2639.1,2638.5,0.785]
[1729297425677,0.05916139,2638.7,2638.5,0.785]
[1729297425874,0.79003647,2639.1,2638.5,0.785]
[1729297426175,0.34198014,2639.0,2638.5,0.785]
[1729297426469,0.05918491,2639.0,2638.5,0.785]
[1729297429048,0.28290208,2638.9,2638.5,0.785]
[1729297429244,0.05918491,2639.0,2638.5,0.785]
[1729297429445,0.05916923,2638.8,2638.5,0.785]
[1729297429673,0.05917707,2638.9,2638.5,0.785]
[1729297429980,0.79003647,2639.0,2638.5,0.785]
[1729297430138,0.05916923,2638.8,2638.5,0.785]
[1729297430338,0.79003647,2639.0,2638.5,0.785]
[1729297430543,0.05919238,2638.7,2638.5,0.785]
[1729297430780,0.79003647,2639.0,2638.5,0.785]
[1729297431076,0.05918454,2638.6,2638.5,0.785]
[1729297431239,0.79003647,2639.0,2638.5,0.785]
[1729297431585,0.28290324,2638.9,2638.5,0.785]
[1729297431750,0.05920806,2638.9,2638.5,0.785]
[1729297431952,0.28290361,2638.8,2638.5,0.785]
[1729297432262,0.05920022,2638.8,2638.5,0.785]
[1729297433039,0.79003647,2639.0,2638.5,0.785]
[1729297433274,0.05919238,2638.7,2638.5,0.785]
[1729297433471,0.3516,2639.1,2638.5,0.785]
[1729297433644,0.28291766,2639.0,2638.5,0.785]
[1729297433855,0.28291766,2638.9,2638.5,0.785]
[1729297434051,0.28291766,2638.8,2638.5,0.785]
[1729297434352,0.79212532,2639.0,2638.5,0.785]
[1729297434538,0.05919238,2638.7,2638.5,0.785]
[1729297434738,0.79212532,2639.0,2638.5,0.785]
[1729297434934,0.05918454,2638.6,2638.5,0.785]
[1729297435180,0.79212532,2639.0,2638.5,0.785]
[1729297435486,0.05918454,2638.6,2638.5,0.785]
[1729297436080,0.79212532,2639.0,2638.5,0.785]
[1729297436265,0.05918454,2638.6,2638.5,0.785]
[1729297436475,0.79212532,2639.0,2638.5,0.785]
[1729297436789,0.3421457,2638.9,2638.5,0.785]
[1729297436940,0.05920806,2638.9,2638.5,0.785]
[1729297437140,0.79212532,2639.1,2638.5,0.785]
[1729297437340,0.05920022,2638.8,2638.5,0.785]
[1729297437838,0.79212532,2639.0,2638.5,0.785]
[1729297438081,0.05919238,2638.7,2638.5,0.785]
[1729297438295,0.79212532,2639.0,2638.5,0.785]
[1729297438454,0.05918454,2638.6,2638.5,0.785]
[1729297438652,0.79212532,2639.0,2638.5,0.785]
[1729297438958,0.28294678,2638.9,2638.5,0.785]
[1729297439266,0.05920806,2638.9,2638.5,0.785]
[1729297441058,0.28294808,2638.8,2638.5,0.785]
[1729297441267,0.85133338,2638.9,2638.5,0.785]
[1729297441471,0.05915795,2638.7,2638.5,0.785]
[1729297441669,0.79212532,2638.9,2638.5,0.785]
[1729297441986,0.34211765,2638.8,2638.5,0.785]
[1729297442139,0.05916579,2638.8,2638.5,0.785]
[1729297442346,0.79212532,2638.9,2638.5,0.785]
[1729297442575,0.05915795,2638.7,2638.5,0.785]
[1729297442773,0.79212532,2639.0,2638.5,0.785]
[1729297443078,0.0591501,2638.6,2638.5,0.785]
[1729297443286,0.79212532,2639.0,2638.5,0.785]
[1729297443463,0.28297083,2638.9,2638.5,0.785]
[1729297443650,0.28297083,2638.8,2638.5,0.785]
[1729297443849,0.05917363,2638.9,2638.5,0.785]
[1729297444049,0.05915795,2638.7,2638.5,0.785]
[1729297444251,0.79212532,2639.0,2638.5,0.785]
[1729297444597,0.28285844,2638.9,2638.5,0.785]
[1729297444884,0.28285844,2638.8,2638.5,0.785]
[1729297445283,0.05915795,2638.7,2638.5,0.785]
[1729297445649,0.79212532,2638.9,2638.5,0.785]
[1729297445871,0.0591501,2638.6,2638.5,0.785]
[1729297446077,0.79212532,2638.9,2638.5,0.785]
[1729297446277,0.0591501,2638.6,2638.5,0.785]
[1729297446474,1.18818798,2639.1,2638.5,0.785]
[1729297446475,0.79212532,2638.9,2638.5,0.785]
[1729297446678,0.0591501,2638.6,2638.5,0.785]
[1729297446857,0.79212532,2638.9,2638.5,0.785]
[1729297447078,0.0591501,2638.6,2638.5,0.785]
[1729297447274,0.79212532,2638.9,2638.5,0.785]
[1729297447587,0.28296645,2638.8,2638.5,0.785]
[1729297447889,0.05916579,2638.8,2638.5,0.785]
[1729297448687,0.28297599,2638.7,2638.5,0.785]
[1729297448861,0.05916579,2638.8,2638.5,0.785]
[1729297449062,0.05912944,2638.6,2638.5,0.785]
[1729297449270,0.79212532,2638.9,2638.5,0.785]
[1729297449488,0.28298411,2638.8,2638.5,0.785]
[1729297449685,0.79212532,2638.9,2638.5,0.785]
[1729297449897,0.05913728,2638.7,2638.5,0.785]
[1729297450105,0.79212532,2638.9,2638.5,0.785]
[1729297450447,0.05912944,2638.6,2638.5,0.785]
[1729297450603,0.79212532,2638.9,2638.5,0.785]
[1729297450774,0.05912944,2638.6,2638.5,0.785]
[1729297450974,0.79212532,2638.9,2638.5,0.785]
[1729297451207,0.05912944,2638.6,2638.5,0.785]
[1729297451365,0.79212532,2638.9,2638.5,0.785]
[1729297451563,0.05912944,2638.6,2638.5,0.785]
[1729297451798,0.79212532,2638.9,2638.5,0.785]
[1729297452002,0.05912944,2638.6,2638.5,0.785]
[1729297452203,0.79212532,2638.9,2638.5,0.785]
[1729297452398,0.05912944,2638.6,2638.5,0.785]
[1729297452605,0.79212532,2638.9,2638.5,0.785]
[1729297452902,0.05912944,2638.6,2638.5,0.785]
[1729297453101,0.79212532,2638.9,2638.5,0.785]
[1729297453279,0.34221081,2638.8,2638.5,0.785]
[1729297453483,0.28306569,2638.7,2638.5,0.785]
[1729297453703,0.05914512,2638.8,2638.5,0.785]
[1729297453912,0.05912944,2638.6,2638.5,0.785]
[1729297454070,0.79212532,2638.9,2638.5,0.785]
[1729297454281,0.28306196,2638.8,2638.5,0.785]
[1729297454512,0.28306196,2638.7,2638.5,0.785]
[1729297454689,0.05913728,2638.7,2638.5,0.785]
[1729297454888,0.79212532,2638.8,2638.5,0.785]
[1729297455217,0.3422469,2638.7,2638.5,0.785]
[1729297455515,0.05913728,2638.7,2638.5,0.785]
[1729297455878,0.79212532,2638.8,2638.5,0.785]
[1729297456103,0.05912944,2638.6,2638.5,0.785]
[1729297456315,0.2831772,2638.6,2638.5,0.785]
[1729297456511,0.34230664,2638.6,2638.5,0.785]
[1729297457809,0.34246384,2638.6,2638.5,0.785]
[1729297459217,0.34246384,2638.6,2638.5,1.115]
[1729297459878,0.34254276,2638.6,2638.5,1.115]
[1729297461721,0.34254276,2638.6,2638.5,0.785]
[1729297461722,0.34257725,2638.6,2638.5,0.785]
[1729297464754,0.34257725,2638.6,2638.5,1.115]
[1729297465584,0.05912944,2638.6,2638.5,1.115]
[1729297465745,0.34260124,2638.6,2638.5,1.115]
[1729297466059,0.34258057,2638.6,2638.5,1.115]
[1729297469669,0.34263333,2638.6,2638.5,1.115]
[1729297471331,0.34263333,2638.6,2638.5,0.33]
[1729297471533,1.88517023,2638.6,2638.5,0.33]
[1729297472019,0.69698225,2638.6,2638.5,0.33]
[1729297472361,1.88737106,2638.6,2638.5,0.33]
[1729297472522,1.8873591,2638.6,2638.5,0.33]